Cogmind - Beta 14 @@@ ROGUE MODE // 2024.08.11 @ 21:30:18 Player: Ladmageddon Result: Destroyed by L-31 Rogue with Katana Performance ------------- Evolutions (2) 1000 Regions Visited (5) 1000 Robots Destroyed (36) 180 Value Destroyed (1249) 1249 Prototype IDs (3) 60 Alien Tech Used (0) 0 Bonus (793) 793 TOTAL SCORE: 4282 Bonus ------- High Alert Combat Kills 158 Follower Combat Kills 635 Cogmind --------- Core Integrity 0/550 Matter 300/300 Energy 210/220 System Corruption 2% Temperature Cool (61) Movement Flying (382) Ox5 Location -8/Storage Parts ------- > --- POWER (2) -------- Light Nuclear Core Light Nuclear Core > --- PROPULSION (3) --- Improved VTOL Module Improved VTOL Module > --- UTILITY (4) ------ High-capacity Storage Unit Targeting Computer > --- WEAPON (2) ------- Particle Gun > --- INVENTORY (20) --- Improved Ion Engine Light Treads Heat Sink Improved Heat Sink Advanced Targeting Computer Kinecellerator Actuator Array Remote Datajack Peak State ------------ > --- POWER ------------ Light Ion Engine Reinforced Ion Engine > --- PROPULSION ------- Light Treads Light Treads Light Treads > --- UTILITY ---------- High-capacity Storage Unit Sensor Array Bomb Drone Bay > --- WEAPON ----------- EM Shotgun Minigun > --- INVENTORY -------- Light Ion Engine Light Ion Engine Improved Ion Engine Light Nuclear Core Aerolev Unit Aerolev Unit Improved VTOL Module Improved VTOL Module Heat Sink Targeting Computer Advanced Targeting Computer Advanced Targeting Computer Kinecellerator Kinecellerator Actuator Array Core Shielding Core Shielding Light Armor Plating Light Armor Plating Remote Datajack [Rating: 32] Favorites ----------- Power Light Ion Engine Engine Light Ion Engine Power Core Light Nuclear Core Propulsion Light Treads Treads Light Treads Hover Unit Aerolev Unit Flight Unit Improved VTOL Module Utility High-capacity Storage Unit Device Sensor Array Storage High-capacity Storage Unit Processor Targeting Computer Protection Core Shielding Weapon Assault Rifle Energy Gun EM Shotgun Ballistic Gun Assault Rifle Launcher Grenade Launcher Special Weapon Remote Datajack Build | -11 -10 -10 -9 -8 -8 ------- Run | Yrd Mat Min Mat Mat Sto Slots Evolved 4 | . . . 2 2 . Power 1 | . . . . 1 . Propulsion 1 | . . . . 1 . Utility 2 | . . . 2 . . Weapon . | . . . . . . Parts Attached 44 | 6 2 1 5 3 27 Power 7 | 1 . 1 1 1 3 Engine 4 | 1 . 1 1 1 . Core 3 | . . . . . 3 Reactor . | . . . . . . Propulsion 12 | 2 . . 2 1 7 Treads 8 | 2 . . 2 1 3 Leg . | . . . . . . Wheel . | . . . . . . Hover 2 | . . . . . 2 Flight 2 | . . . . . 2 Utility 13 | 1 2 . 1 . 9 Device 5 | . 1 . 1 . 3 Storage 2 | 1 1 . . . . Processor 2 | . . . . . 2 Hackware . | . . . . . . Protection 4 | . . . . . 4 Artifact . | . . . . . . Weapon 12 | 2 . . 1 1 8 Energy Gun 4 | . . . 1 . 3 Energy Cannon . | . . . . . . Ballistic Gun 6 | 2 . . . 1 3 Ballistic Cannon . | . . . . . . Launcher 1 | . . . . . 1 Special Weapon 1 | . . . . . 1 Impact Weapon . | . . . . . . Slashing Weapon . | . . . . . . Piercing Weapon . | . . . . . . Special Melee Weapon . | . . . . . . Unidentified Prototypes 3 | . . . 1 . 2 Parts Lost 21 | . . . . . 21 Power 2 | . . . . . 2 Propulsion 6 | . . . . . 6 Utility 7 | . . . . . 7 Weapon 6 | . . . . . 6 Highest Loss Streak 6 | . . . . . 6 To Critical Strikes . | . . . . . . Average Slot Usage (%) 89 | . 93 100 85 87 82 Engine 10 | . 14 14 11 18 5 Core 2 | . . . . . 6 Treads 19 | . 28 28 22 26 11 Hover 3 | . . . . . 9 Device 11 | . 8 14 22 18 5 Storage 11 | . 14 14 11 9 9 Processor 2 | . . . . . 6 Protection 4 | . . . . . 10 Energy Gun 4 | . . . 2 9 7 Ballistic Gun 16 | . 28 28 16 7 8 Peak Build Rating 32 | 6 7 9 24 30 32 Average Rating 16 | 4 6 7 22 27 22 On Entrance 12 | . 6 7 9 23 30 Naked Turns . | . . . . . . Heaviest Build 68 | 11 47 47 62 68 68 Greatest Support 60 | 40 40 40 40 60 60 Greatest Overweight (x) 6 | . 1 1 1 1 6 Average Overweight (x) 1 | . . 1 1 1 2 Largest Inventory Capacity 20 | 8 20 20 20 20 20 Average Capacity 19 | 7 11 20 20 20 20 Most Carried 20 | 5 6 16 15 16 20 Average Carried 11 | 2 4 9 14 10 14 Final Capacity 20 | 8 20 20 20 20 20 Final Carried 16 | 3 6 16 14 16 8 Class Distribution -------------------- 81% | Mutant 10% | Commander-Mutant 8% | Scavenger-Mutant Dominant Class ---------------- Mutant | -10/Materials Mutant | -10/Mines Mutant | -9/Materials Mutant | -8/Materials Mutant | -8/Storage Resources | -11 -10 -10 -9 -8 -8 ----------- Run | Yrd Mat Min Mat Mat Sto Matter Collected 1129 | 243 42 81 66 . 697 Remotely . | . . . . . . Salvage Created 1495 | . 40 148 . . 1307 Parts 89 | . 5 17 . . 67 Haulers Intercepted . | . . . . . . Recyclers Shooed . | . . . . . . Parts Field Recycled . | . . . . . . Retrieved Matter . | . . . . . . Parts Self-Destructed . | . . . . . . Prevented . | . . . . . . Kills | -11 -10 -10 -9 -8 -8 ------- Run | Yrd Mat Min Mat Mat Sto Combat Hostiles Destroyed 33 | . 3 7 . . 23 Guns 31 | . 3 7 . . 21 AOE 2 | . . . . . 2 Classes Destroyed 8 | . 1 1 . . 6 Builder 1 | . . . . . 1 Recycler 1 | . . . . . 1 Watcher 1 | . . . . . 1 Swarmer 9 | . 3 6 . . . Grunt 14 | . . . . . 14 Brawler 1 | . . . . . 1 Duelist 2 | . . . . . 2 Sentry 7 | . . 1 . . 6 Best Kill Streak 5 | . 3 3 . . 5 Combat Bots Only 5 | . 3 3 . . 5 Max Kills in Single Turn 2 | . 1 1 . . 2 Gunslinging . | . . . . . . Exploded 1 | . . . . . 1 Melee . | . . . . . . Uniques/NPCs Destroyed . | . . . . . . Combat | -11 -10 -10 -9 -8 -8 -------- Run | Yrd Mat Min Mat Mat Sto Hostile Shots Fired 251 | . 14 28 10 . 199 Missed 68 | . 3 11 3 . 51 Damage Taken 3508 | . 96 138 443 . 2831 Core 624 | . 10 24 21 . 569 Absorbed by Shields 43 | . . . . . 43 Redirected to Shielding 101 | . . . . . 101 Core Remaining (%) 93 | 100 . 86 94 . . Volleys Fired 139 | . 8 11 4 . 116 Largest 2 | . 2 2 2 . 2 Hottest 88 | . 40 40 40 . 88 Shots Fired 211 | . 16 22 8 . 165 Gun 204 | . 16 22 8 . 158 Cannon . | . . . . . . Launcher 6 | . . . . . 6 Special 1 | . . . . . 1 Kinetic 152 | . 16 22 8 . 106 Thermal 32 | . . . . . 32 Explosive 6 | . . . . . 6 Electromagnetic 20 | . . . . . 20 Robot Hit Streak 16 | . 1 5 1 . 16 Robot Miss Streak 5 | . 5 1 2 . 3 Penetration Max . | . . . . . . Secondary Targets 4 | . . 3 . . 1 Max Gunslinging Chain 1 | . . 1 . . 1 Shots Hit Robots 142 | . 4 14 3 . 121 Core Hits 79 | . 4 9 . . 66 Critical Kills . | . . . . . . Critical Parts Destroyed . | . . . . . . Critical Strikes 2 | . . . . . 2 Burn 2 | . . . . . 2 Melee Attacks . | . . . . . . Impact . | . . . . . . Slashing . | . . . . . . Piercing . | . . . . . . Sneak Attacks . | . . . . . . Combat Hostiles . | . . . . . . Follow-up Attacks . | . . . . . . Damage Inflicted 3077 | . 47 159 35 . 2836 Guns 2285 | . 47 159 35 . 2044 Cannons . | . . . . . . Explosions 776 | . . . . . 776 Melee . | . . . . . . Ramming 16 | . . . . . 16 Kinetic 1606 | . 47 159 35 . 1365 Thermal 651 | . . . . . 651 Explosive 519 | . . . . . 519 Electromagnetic 285 | . . . . . 285 Impact . | . . . . . . Slashing . | . . . . . . Piercing . | . . . . . . Highest Corruption 2 | . . . . . 2 Average Corruption 2 | . . . . . 2 Corruption Purged . | . . . . . . Corruption Blocked . | . . . . . . Effects 11 | . . . . . 11 Message Errors 5 | . . . . . 5 Matter Fused 4 | . . . . . 4 Heat Flow Errors 2 | . . . . . 2 Overload Shots . | . . . . . . Overflow Damage 31 | . . . . . 31 Projectiles . | . . . . . . Explosions 31 | . . . . . 31 Melee . | . . . . . . Knockbacks . | . . . . . . Impact . | . . . . . . Kinetic . | . . . . . . Secondary . | . . . . . . Self-Inflicted Damage 109 | . . . . . 109 Shots 4 | . . . . . 4 Rammed 2 | . . . . . 2 Targets Rammed 2 | . . . . . 2 Kicked . | . . . . . . Crushed . | . . . . . . Highest Temperature 309 | . . . 6 . 309 Average Temperature 99 | . . . 4 . 100 Received Heat Transfer 1155 | . . . 36 . 1119 Effects 6 | . . . . . 6 Energy Bleed 3 | . . . . . 3 Interference 3 | . . . . . 3 Siege Activations . | . . . . . . Robots Corrupted . | . . . . . . Combat Hostiles . | . . . . . . Parts Fried . | . . . . . . Impact Corruptions . | . . . . . . Robots Melted . | . . . . . . Combat Hostiles . | . . . . . . Parts Melted 2 | . . 1 . . 1 Heat Transferred 1364 | . . . . . 1364 Parts Sabotaged . | . . . . . . Parts Stolen . | . . . . . . Parts Stripped . | . . . . . . Power Chain Reactions 3 | . . . . . 3 Alert | -11 -10 -10 -9 -8 -8 ------- Run | Yrd Mat Min Mat Mat Sto Peak Influence 814 | . 70 97 . . 814 Initial 27 | . . 27 . . . Average 206 | . 23 62 . . 436 Maximum Alert Level 3 | . . . . . 3 Low Security (%) 68 | 100 100 100 100 100 25 Level 1 8 | . . . . . 19 Level 2 11 | . . . . . 25 Level 3 12 | . . . . . 28 Level 4 . | . . . . . . Level 5 . | . . . . . . High Security . | . . . . . . Max Security . | . . . . . . Squads Dispatched 16 | . 1 . . . 15 Investigation 3 | . . . . . 3 Extermination . | . . . . . . Reinforcement 3 | . 1 . . . 2 Assault 4 | . . . . . 4 Garrison 6 | . . . . . 6 Intercept . | . . . . . . Searches Triggered . | . . . . . . Construction Impeded 1 | . . . . . 1 Haulers Reinforced . | . . . . . . Active Scanning Responses . | . . . . . . Cargo Convoy Interrupts . | . . . . . . Stealth | -11 -10 -10 -9 -8 -8 --------- Run | Yrd Mat Min Mat Mat Sto Distress Signals 1 | . . . 1 . . Communications Jammed . | . . . . . . Distress Signals . | . . . . . . Times Spotted 71 | . 6 7 3 . 55 Peak Tracking Total 7 | . 4 3 2 . 7 Tactical Retreats 2 | . . . . . 2 Traps | -11 -10 -10 -9 -8 -8 ------- Run | Yrd Mat Min Mat Mat Sto Traps Triggered 1 | . . . . . 1 Indirectly . | . . . . . . Trap Hack Attempts . | . . . . . . Triggered . | . . . . . . Disarmed . | . . . . . . Reprogrammed . | . . . . . . Reused . | . . . . . . Traps Extracted . | . . . . . . Installed . | . . . . . . Triggered . | . . . . . . Machines | -11 -10 -10 -9 -8 -8 ---------- Run | Yrd Mat Min Mat Mat Sto Machines Disabled 2 | . . . . . 2 Max in Single Turn 1 | . . . . . 1 Machines Repaired . | . . . . . . Machines Dismantled . | . . . . . . Machines Sabotaged . | . . . . . . Overloaded Fab Kills . | . . . . . . Hacking | -11 -10 -10 -9 -8 -8 --------- Run | Yrd Mat Min Mat Mat Sto Machines Accessed 3 | . . 1 . . 2 Terminals 2 | . . . . . 2 Fabricators . | . . . . . . Repair Stations . | . . . . . . Recycling Units . | . . . . . . Scanalyzers . | . . . . . . Garrison Access . | . . . . . . Total Hacks 8 | . . 1 . . 7 Successful 3 | . . 1 . . 2 Failed 5 | . . . . . 5 Catastrophic 1 | . . . . . 1 Database Lockouts . | . . . . . . Manual . | . . . . . . Terminals 7 | . . . . . 7 Fabricators . | . . . . . . Repair Stations . | . . . . . . Recycling Units . | . . . . . . Scanalyzers . | . . . . . . Garrison Access . | . . . . . . Terminal Hacks 3 | . . 1 . . 2 Record 2 | . . . . . 2 Open Door 1 | . . 1 . . . Fabricator Hacks . | . . . . . . Repair Station Hacks . | . . . . . . Recycling Unit Hacks . | . . . . . . Scanalyzer . | . . . . . . Garrison Access Hacks . | . . . . . . Unauthorized Hacks . | . . . . . . Terminals . | . . . . . . Fabricators . | . . . . . . Repair Stations . | . . . . . . Recycling Units . | . . . . . . Scanalyzers . | . . . . . . Garrison Access . | . . . . . . Data Cores Recovered . | . . . . . . Used . | . . . . . . Hacking Detections 2 | . . . . . 2 Full Trace Events 2 | . . . . . 2 Feedback Events . | . . . . . . Feedback Blocked . | . . . . . . Robot Schematics Acquired . | . . . . . . Robots Built . | . . . . . . Authchips . | . . . . . . Time . | . . . . . . Total Robot Build Rating . | . . . . . . Part Schematics Acquired . | . . . . . . Parts Built . | . . . . . . Authchips . | . . . . . . Time . | . . . . . . Total Part Build Rating . | . . . . . . Parts Repaired . | . . . . . . Time . | . . . . . . Parts Recycled . | . . . . . . Recycled Matter . | . . . . . . Retrieved Matter . | . . . . . . Retrieved Components . | . . . . . . Parts Scanalyzed . | . . . . . . Part Schematics Acquired . | . . . . . . Parts Damaged . | . . . . . . Bothacking | -11 -10 -10 -9 -8 -8 ------------ Run | Yrd Mat Min Mat Mat Sto Used RIF Installer . | . . . . . . Robots Hacked 1 | . . . . . 1 Non-combat . | . . . . . . Combat 1 | . . . . . 1 Robot Hacks Applied 1 | . . . . . 1 parse_system 1 | . . . . . 1 Relay Couplers Released . | . . . . . . Fabnet Peak Effective % . | . . . . . . Robots Rewired . | . . . . . . Allies Hacked . | . . . . . . Hacks Repelled . | . . . . . . Allies | -11 -10 -10 -9 -8 -8 -------- Run | Yrd Mat Min Mat Mat Sto Total Allies 12 | . . . . . 12 Largest Group 10 | . . . . . 10 Highest-Rated Group 173 | . . . . . 173 Highest-Rated Ally 31 | . . . . . 31 Total Orders . | . . . . . . Ally Attacks 198 | . . . 14 . 184 Total Damage 2097 | . . . . . 2097 Kills 26 | . . . . . 26 Allies Corrupted 1 | . . . . . 1 Allies Melted . | . . . . . . Intel | -11 -10 -10 -9 -8 -8 ------- Run | Yrd Mat Min Mat Mat Sto Robot Analysis Total . | . . . . . . Derelict Logs Recovered 2 | . . 2 . . . Drone Launches 17 | . . . 16 1 . Drone Recoveries 1 | . . . 1 . . Exploration | -11 -10 -10 -9 -8 -8 ------------- Run | Yrd Mat Min Mat Mat Sto Turns Passed 3014 | 63 237 829 349 241 1295 Spaces Moved 1095 | 34 119 325 132 96 389 Core 5 | 5 . . . . . Treads 877 | 29 119 325 132 96 176 Legs . | . . . . . . Wheels . | . . . . . . Hover 189 | . . . . . 189 Flight 24 | . . . . . 24 Fastest Speed 50 | 50 160 240 240 240 160 Average Speed 228 | 143 176 240 240 240 235 Slowest Speed 410 | 160 240 240 240 240 410 Overloaded Moves . | . . . . . . Propulsion Burnouts . | . . . . . . Robots Hopped . | . . . . . . Cave-ins Triggered 1 | . . . . . 1 Exploration Rate (%) 36 | 4 29 86 23 9 69 Regions Visited 5 Branch Regions 2 Pre-discovered Areas 1 | . . 1 . . . Known Exits Taken . | . . . . . . Unknown Exits Taken 5 | 1 1 1 1 1 . Scrap Searched 1 | . . 1 . . . Spaces Dug . | . . . . . . Terrain Destroyed 54 | . . . . . 54 Melee . | . . . . . . Projectile . | . . . . . . AOE 54 | . . . . . 54 Terrain Rammed . | . . . . . . Walls Destroyed . | . . . . . . Machines Disabled . | . . . . . . Actions | -11 -10 -10 -9 -8 -8 --------- Run | Yrd Mat Min Mat Mat Sto Total 1422 | 48 132 356 158 109 619 Wait 85 | . . 9 13 . 63 Move 1090 | 33 118 324 131 95 389 Hop . | . . . . . . Pick Up 49 | 9 4 10 2 8 16 Fast Attach . | . . . . . . Attach 35 | 6 1 1 2 3 22 Detach 1 | . . . . . 1 Swap 9 | . 1 . 3 . 5 Drop 12 | . . 1 3 3 5 Fire 139 | . 8 11 4 . 116 Melee . | . . . . . . Ram . | . . . . . . Kick . | . . . . . . Crush 2 | . . . . . 2 Escape Stasis . | . . . . . . Rewire . | . . . . . . Trap . | . . . . . . Miscellaneous . | . . . . . . Route ------- -11/Scrapyard -10/Materials -10/Mines -9/Materials -8/Materials -8/Storage History --------- Turn | Location | Event 12 | -11/Scrapyard | Discovered new exit (range 15) 64 | -11/Scrapyard | Entered Materials 265 | -10/Materials | Discovered new exit (range 16) 301 | -10/Materials | Entered Mines 316 | -10/Mines | Build established: Mutant 764 | -10/Mines | Learned Materials trap positions 814 | -10/Mines | Joined a pair of Derelicts in attacking an 0b10 outpost 1036 | -10/Mines | Learned location of Storage (-8) 1067 | -10/Mines | Discovered new exit (range 15) 1104 | -10/Mines | Found the Drone Emporium 1115 | -10/Mines | Found Prototype Device 1130 | -10/Mines | Entered Materials 1130 | -9/Materials | Evolved 2 slots: Utility x2 1130 | -9/Materials | Identified Bomb Drone Bay 1131 | -9/Materials | Loaded intel: 13 trap records 1212 | -9/Materials | Lost 4 allies 1362 | -9/Materials | Lost 7 allies 1466 | -9/Materials | Discovered new exit (range 6) 1479 | -9/Materials | Entered another Materials area 1479 | -8/Materials | Evolved 2 slots: Power x1, Propulsion x1 1649 | -8/Materials | Discovered new exit (range 13) 1720 | -8/Materials | Entered Storage 1720 | -8/Storage | Accompanied by 1 ally 1759 | -8/Storage | Met a pair of Derelict thieves 1884 | -8/Storage | Lost 3 allies 1960 | -8/Storage | Garrison activated, responded to threat 2288 | -8/Storage | Crushed by falling debris 2304 | -8/Storage | Assisted by bots powering up and referring to "LRC-V3" 2336 | -8/Storage | Lost 6 parts (1p3n2w) 2340 | -8/Storage | Garrison activated, responded to threat 2520 | -8/Storage | First assault squad dispatched 2597 | -8/Storage | Build established: Commander-Mutant 2642 | -8/Storage | Lost 4 allies 2784 | -8/Storage | Core integrity fell below 50% 2893 | -8/Storage | Core integrity fell below 20% 2897 | -8/Storage | Build established: Mutant 2914 | -8/Storage | Lost 4 parts (1n3w) 3015 | -8/Storage | Destroyed by L-31 Rogue with Katana Last Messages --------------- Adv. Targeting Computer temporarily disabled. R-06 Scavenger collects Com. Wheel. Overheating: Energy bleed (-33). R-06 Scavenger collects Com. Wheel. YZJKHQ% IPUA>WNW2AN1KWMMJS1S#0 Connecting with Door Terminal... ALERT: Suspicious activity at Terminal S007. Dispatching Investigation squad. C-30 ARC bursts open, deploying its payload. G-50 Soldier unfolds itself. G-47 Trooper unfolds itself. L-31 Rogue unfolds itself. B-36 Bruiser unfolds itself. I-25 Savior unfolds itself. Adv. Targeting Computer destroyed. Particle Gun severed. R-06 Scavenger collects Particle Gun. System corrupted: Matter fused (-6). Core Shielding destroyed. Aerolev Unit destroyed. Map ----- +----------------------------------------------------+ | | | | | | | | | | | | | | | ?????????????????????????????????????????????????? | | ????????##???????????????????????????????????????? | | ???????# ??????######????????????????????????????? | | ####### ###### #????????????????????????????? | | #????????????????????????????? | | " T #????????????????????????????? | | %"%" #????????????????????????????? | | ## #####+#### #????????????????????????????? | | ?# #?## #??? ##????????????????????????????? | | ?# #?#T #?????#???##"""##???????????????????? | | ## ####" "##?????????#T #???????????????????? | | # ## #?????????## #???????????????????" | | + ##= #??????????##+###############??????# | | # ## =#??????????# + # #??????T | | ## ##= =#?# ###### g # ! # #??????# | | ?# #########?# "%" # + =% #??????# | | ?# #???????#?# ######bg # #% = #??????# | | ?# ####### ###????????#l #! # #??????# | | ?# #! #????????#@ # ## ##?????## | | ?# # T #????????# # ## ######## | | ?# #% " #????????# # ## = | | ?# # " #????????# # ! ## *% | | ?# + " #????????# # ## ^"" ### | | ?# # " #????????# # ## "Y ##### | | ?# # """ #????????# # ] ## "" + | | ?# # [ #????????# # ## # | | ?# = ###########????????# ######### #? | | ?#|%!#???###????????????# #???????# ^ #??"" | | ?# * #???""#????????????# #???????# #???? | | ?# ###"T"#####????????? #???????# #??"" | | ?# # ?????????? #???????# !!! # | | !#=[ # """"???????????? #???????# !!! + % | | !+% !# """"???????????? #???????# ^ !! ####+ | | [#==%#! """"????????????###????????# #??# | | #%**/! """"???????????????????????# #### | | ?#%! # ! #????????????????????# | | ?+!=[# #??????????????####??# | | ?## ## #??????????????#"""#?# ########## | | ??# ##+#########???????????####"T"### # | | ??# ## #???????????????????# # %/= "???? | | ??# ## #???????????????????# """ # # ""???? | | ###+## #???????????????????# """ # [#[ ""????? | | # #???????????#???????# """ + *+% "?????? | +----------------------------------------------------+ Best States ------------- Heat Dissipation 45 Energy Generation 23 Energy Capacity 290 Matter Stores 300 Matter Capacity 300 Sight Range 16 Robot Scan Range 14 Terrain Scan Density 10 Armor Coverage 150 Core Shielding 20 Evasion (%) 40 Targeting Accuracy 13 Recoil Reduction 3 Kinecelleration 30 Item Schematics ----------------- None Robot Schematics ------------------ None Fabricated ------------ Nothing Alien Tech Used ----------------- None Achievements -------------- None Challenges ------------ None Game ------ Seed ContainmentGodInitializer Manual? 0 Play Time 00:27:45 Cumulative 7.4 hours Start 2024.08.11 @ 21:04:08 End 2024.08.11 @ 21:30:18 Sessions 1 Manual Loads 0 Difficulty Rogue Special Mode None Game No. 16 Rogue 13 Adventurer 3 Explorer 0 Win Type - Total 0 Types 0/0/0/0/0/0/0/0/0 Lore% 1 Gallery% 18 Achievement% 12 Wizard Run 0 Options --------- Layout 1 ASCII 0 Keyboard 0 Movement Mouse Keybinds 0 Fullscreen 1 Font 24/Smallcaps Map View 50x35 Zoom Use 0% Tactical HUD 0 Map Filters NONE Filters NONE Steam 1 RUN: 475a2561-c46a-40ad-9f72-e12348c5ff0b